lending/lending_fUSD_20241214
["ID","MTS","AMOUNT","RATE_DAILY","PERIOD"]
[345374414,1734201042394,-500.0,0.00021978,3]
[345374415,1734201042402,-500.0,0.00021978,3]
[345374416,1734201042411,-500.0,0.00021978,3]
[345374417,1734201042420,-500.0,0.00021978,3]
[345374418,1734201042429,-500.0,0.00021978,3]
[345374419,1734201042438,-500.0,0.00021978,3]
[345374420,1734201042447,-500.0,0.00021978,3]
[345374421,1734201042456,-500.0,0.00021978,3]
[345374422,1734201042469,-500.0,0.00021978,3]
[345374423,1734201042477,-500.0,0.00021978,3]
[345374424,1734201042487,-500.0,0.00021978,3]
[345374425,1734201042496,-500.0,0.00021978,3]
[345374426,1734201042506,-330.95460249,0.00021978,3]
[345374427,1734201042517,-500.0,0.00021978,3]
[345374428,1734201042526,-525.66618224,0.00021978,3]
[345374429,1734201042536,-500.0,0.00021978,3]
[345374430,1734201042545,-500.0,0.00021978,3]
[345374431,1734201042555,-500.0,0.00021978,3]
[345374432,1734201042566,-500.0,0.00021978,3]
[345374433,1734201042575,-500.0,0.00021978,3]
[345374434,1734201042585,-500.0,0.00021978,3]
[345374435,1734201042598,-500.0,0.00021978,3]
[345374436,1734201042607,-500.0,0.00021978,3]
[345374437,1734201042616,-500.0,0.00021978,3]
[345374438,1734201042625,-500.0,0.00021979,3]
[345374439,1734201042635,-380.11036459,0.00021979,3]
[345374440,1734201042644,-500.0,0.00021979,3]
[345374441,1734201042653,-500.0,0.00021979,3]
[345374442,1734201042662,-500.0,0.00021979,3]
[345374443,1734201042672,-500.0,0.00021979,3]
[345374444,1734201042681,-500.0,0.00021979,3]
[345374445,1734201042690,-500.0,0.00021979,3]
[345374446,1734201042700,-500.0,0.00021979,3]
[345374447,1734201042709,-500.0,0.00021979,3]
[345374448,1734201042719,-500.0,0.00021979,3]
[345374449,1734201042728,-502.2814004,0.00021979,3]
[345374450,1734201042737,-500.0,0.00021979,3]
[345374451,1734201042746,-589.99127344,0.00021979,3]
[345374452,1734201042757,-269.46295548,0.00021979,3]
[345374453,1734201042766,-244.99728036,0.00022,2]
[345374454,1734201042777,-8088.77142337,0.00022,2]
[345374455,1734201042786,-49296.60141262,0.00022,2]
[345374456,1734201042796,-754.23023519,0.00022,7]
[345374458,1734201042805,-7997.64545203,0.00022,15]
[345374461,1734201042814,-300.97202999,0.00022,5]
[345374463,1734201042823,-176.0,0.00022,2]
[345374464,1734201042831,-4999.99999901,0.00022,2]
[345374465,1734201042847,-301.38,0.00022021,2]
[345374466,1734201042856,-150.78,0.00022021,2]
[345374467,1734201042865,-906.5,0.00022032,15]
[345374468,1734201042875,-2152.73502258,0.00022064,7]
[345374469,1734201042884,-1239.20571,0.00022088,7]
[345374470,1734201042893,-19783.56683313,0.000221,2]
[345374471,1734201042902,-2067.2693,0.000221,2]
[345374472,1734201042912,-300.0,0.00022118,2]
[345374474,1734201042920,-1901.7206,0.00022162,2]
[345374476,1734201042930,-2152.73502258,0.00022176,7]
[345374477,1734201042940,-500.0,0.00022199,3]
[345374478,1734201042949,-628.81,0.00022199,3]
[345374479,1734201042958,-500.0,0.00022199,3]
[345374480,1734201042967,-500.0,0.00022199,3]
[345374481,1734201042977,-500.0,0.00022199,3]
[345374482,1734201042986,-500.0,0.00022199,3]
[345374483,1734201042995,-500.0,0.00022199,3]
[345374484,1734201043004,-500.0,0.00022199,3]
[345374485,1734201043013,-500.0,0.00022199,3]
[345374486,1734201043023,-500.0,0.00022199,3]
[345374487,1734201043038,-591.90082972,0.00022199,3]
[345374488,1734201043047,-500.0,0.00022199,3]
[345374489,1734201043056,-500.0,0.00022199,3]
[345374490,1734201043066,-659.89,0.00022199,3]
[345374491,1734201043076,-659.89,0.00022199,3]
[345374492,1734201043089,-659.89,0.00022199,3]
[345374493,1734201043099,-659.89,0.00022199,3]
[345374494,1734201043109,-659.89,0.00022199,3]
[345374495,1734201043118,-659.89,0.00022199,3]
[345374496,1734201043128,-659.89,0.00022199,3]
[345374497,1734201043137,-659.89,0.00022199,3]
[345374498,1734201043146,-659.89,0.00022199,3]
[345374499,1734201043156,-659.89,0.00022199,3]
[345374500,1734201043165,-659.89,0.00022199,3]
[345374501,1734201043174,-659.89,0.00022199,3]
[345374502,1734201043182,-659.89,0.00022199,3]
[345374503,1734201043191,-659.89,0.00022199,3]
[345374504,1734201043201,-659.89,0.00022199,3]
[345374505,1734201043210,-659.89,0.00022199,3]
[345374506,1734201043220,-659.89,0.00022199,3]
[345374507,1734201043229,-659.89,0.00022199,3]
[345374508,1734201043239,-659.89,0.00022199,3]
[345374509,1734201043249,-659.89,0.00022199,3]
[345374510,1734201043258,-659.89,0.00022199,3]
[345374511,1734201043267,-659.89,0.00022199,3]
[345374512,1734201043277,-659.90142605,0.00022199,3]
[345374513,1734201043287,-500.0,0.00022199,3]
[345374514,1734201043295,-500.0,0.00022199,3]
[345374515,1734201043304,-500.0,0.00022199,3]
[345374516,1734201043314,-500.0,0.00022199,3]
[345374517,1734201043323,-500.0,0.00022199,3]
[345374518,1734201043332,-500.0,0.00022199,3]
[345374519,1734201043349,-500.0,0.00022199,3]
[345374520,1734201043359,-500.0,0.00022199,3]
[345374521,1734201043367,-500.0,0.00022199,3]
[345374522,1734201043376,-500.0,0.00022199,3]
[345374523,1734201043388,-500.0,0.00022199,3]
[345374524,1734201043398,-500.0,0.00022199,3]
[345374525,1734201043407,-500.0,0.00022199,3]
[345374526,1734201043416,-500.0,0.00022199,3]
[345374527,1734201043425,-500.0,0.00022199,3]
[345374528,1734201043434,-226.460535,0.00022199,3]
[345374529,1734201043443,-500.0,0.00022199,3]
[345374530,1734201043451,-500.0,0.00022199,3]
[345374531,1734201043460,-500.0,0.00022199,3]
[345374532,1734201043469,-500.0,0.00022199,3]
[345374533,1734201043478,-524.02,0.00022199,3]
[345374534,1734201043487,-500.0,0.00022199,3]
[345374535,1734201043496,-500.0,0.00022199,3]
[345374536,1734201043506,-500.0,0.00022199,3]
[345374537,1734201043515,-500.0,0.00022199,3]
[345374538,1734201043524,-500.0,0.00022199,3]
[345374539,1734201043534,-500.0,0.00022199,3]
[345374540,1734201043543,-500.0,0.00022199,3]
[345374541,1734201043553,-500.0,0.00022199,3]
[345374542,1734201043563,-500.0,0.00022199,3]
[345374543,1734201043572,-500.0,0.00022199,3]
[345374544,1734201043581,-500.0,0.00022199,3]
[345374545,1734201043598,-500.0,0.00022199,3]
[345374546,1734201043608,-618.79884478,0.00022199,3]
[345374547,1734201043618,-500.0,0.00022199,3]
[345374548,1734201043628,-500.0,0.00022199,3]
[345374549,1734201043638,-500.0,0.00022199,3]
[345374550,1734201043648,-500.0,0.00022199,3]
[345374551,1734201043658,-500.0,0.00022199,3]
[345374552,1734201043668,-500.0,0.00022199,3]
[345374553,1734201043678,-500.0,0.00022199,3]
[345374554,1734201043687,-500.0,0.00022199,3]
[345374555,1734201043849,-500.0,0.00022199,3]
[345374556,1734201043877,-500.0,0.00022199,3]
[345374557,1734201043887,-500.0,0.00022199,3]
[345374558,1734201043897,-416.68,0.00022199,3]
[345374559,1734201043907,-873632.59499864,0.000222,2]
[345374560,1734201043932,-9302.6998,0.000222,2]
[345374562,1734201043955,-158.99470297,0.00021978,3]
[345374564,1734201043965,-4440.9248617,0.000222,2]
[345374566,1734201043977,-745.402,0.000222,2]
[345374567,1734201043988,-480.46138156,0.000222,2]
[345374568,1734201044077,-4705.17486825,0.000222,2]
[345374569,1734201044095,-34103.72203582,0.000222,2]
[345374570,1734201044108,-37531.26027224,0.000222,2]
[345374571,1734201044119,-559.00034493,0.000222,2]
[345374572,1734201044139,-475.08350002,0.000222,2]
[345374573,1734201044707,-63.99670191,0.000204,2]
[345374574,1734201044724,-260.71472315,0.000204,2]
[345374575,1734201044734,-548.66226978,0.000222,2]
[345374576,1734201044745,-3035.1582,0.000222,2]
[345374577,1734201044757,-5478.84726937,0.000222,2]
[345374578,1734201044769,-45580.404136,0.000222,2]
[345374579,1734201044784,-772.67735238,0.000222,2]
[345374580,1734201044797,-1231.7703584,0.000222,2]
[345374581,1734201044808,-5935.63619971,0.000222,2]
[345374589,1734201046112,-324.71142506,0.000209,2]
[345374590,1734201046122,-63.97231248,0.00021095,3]
[345374591,1734201046198,-128.86667545,0.00021095,3]
[345374592,1734201046209,-307.16101207,0.00021095,3]
[345374593,1734201046219,-96.71898793,0.00021095,3]
[345374594,1734201046233,-403.28101207,0.00021095,3]
[345374595,1734201046242,-104.83648568,0.00021978,3]
[345374596,1734201046371,-393.51811,0.00021095,3]
[345374597,1734201046452,-150.96189,0.00021095,3]
[345374598,1734201046461,-395.16351432,0.00021978,3]
[345374599,1734201046471,-46.07459261,0.000222,2]
[345374607,1734201107590,153.0,0.00016996,2]
[345374608,1734201107812,153.0,0.00016996,2]
[345374609,1734201108022,153.0,0.00016996,2]
[345374610,1734201134097,165.661663,0.00017533,2]
[345374612,1734201847453,156.72,0.00010137,2]
[345374613,1734202030133,-178.41,0.00015574,2]
[345374614,1734202030153,-160.49,0.00015574,2]
[345374615,1734202030174,-1016.16,0.00017381,2]
[345374616,1734202030194,-3831.83904399,0.00018,2]
[345374617,1734202054145,-781.05270897,0.00018,2]
[345374618,1734202155106,-322.35119471,0.00017965,2]
[345374619,1734202155131,-210.65675471,0.00018,2]
[345374620,1734202155169,-156.72,0.00018065,2]
[345374621,1734202155203,-1012.47,0.00018308,2]
[345374622,1734202158402,-329.3018055,0.00018905,2]
[345374623,1734202168107,-300.0,0.00019005,2]
[345374624,1734202168129,-3570.768426,0.00019006,2]
[345374628,1734202232218,-2519.11249938,0.00019006,2]
[345374629,1734202232230,-3495.47907462,0.00019006,2]
[345374630,1734202232242,-1000.0,0.00019014,2]
[345374631,1734202232251,-171.77,0.00019033,2]
[345374632,1734202232261,-200.0,0.00019049,2]
[345374633,1734202232270,-150.0,0.00019151,2]
[345374634,1734202232279,-250.0,0.00019158,2]
[345374635,1734202232289,-300.0,0.00019164,2]
[345374636,1734202232298,-7063.83039235,0.00019165,2]
[345374637,1734202232344,-4743.7477725,0.00019165,2]
[345374638,1734202232356,-2593.50183515,0.00019165,2]
[345374639,1734202232366,-200.0,0.00019169,2]
[345374640,1734202232376,-250.0,0.00019303,2]
[345374641,1734202232385,-641.87,0.00019323,2]
[345374642,1734202232394,-168.46,0.00019389,2]
[345374643,1734202232404,-250.0,0.00019411,2]
[345374644,1734202232413,-156.41,0.00019497,30]
[345374645,1734202232423,-329.30180548,0.00019507,2]
[345374646,1734202232432,-159.82,0.00019527,2]
[345374647,1734202232443,-1016.16,0.00019644,2]
[345374648,1734202232452,-171.77,0.00019737,2]
[345374649,1734202232461,-1018.74,0.00019738,2]
[345374650,1734202232471,-983.04,0.00019772,2]
[345374651,1734202232481,-981.22,0.00019781,2]
[345374652,1734202232498,-980.19,0.00019794,2]
[345374653,1734202232507,-981.77,0.0001981,2]
[345374654,1734202232518,-300.0,0.00019832,2]
[345374655,1734202232528,-985.65,0.00019832,2]
[345374656,1734202232538,-990.74,0.00019838,2]
[345374657,1734202232552,-983.4,0.00019843,2]
[345374658,1734202232562,-1010.53,0.00019857,2]
[345374659,1734202232571,-982.5,0.00019875,2]
[345374660,1734202232580,-1001.51,0.000199,2]
[345374662,1734202232594,-984.65,0.000199,2]
[345374664,1734202232604,-1009.41,0.000199,2]
[345374666,1734202232613,-1006.55,0.000199,2]
[345374668,1734202232623,-996.87,0.000199,2]
[345374670,1734202232633,-1973.043,0.000199,2]
[345374672,1734202232642,-1500.0,0.0002,2]
[345374674,1734202232652,-21654.47567994,0.0002,10]
[345374676,1734202232664,-14301.92967057,0.0002,10]
[345374678,1734202232676,-5343.35637548,0.0002,10]
[345374680,1734202232685,-328.9362706,0.00020108,2]
[345374683,1734202232696,-0.36553488,0.00020108,2]
[345374684,1734202232706,-171.77,0.00020441,2]
[345374687,1734202232715,-306.84316973,0.00020638,2]
[345374689,1734202232725,-452.02130539,0.00020639,2]
[345374691,1734202232742,-534.05869461,0.00020639,2]
[345374694,1734202232752,-258.50648379,0.00020639,2]
[345374696,1734202232763,-315.15829793,0.00020639,2]
[345374699,1734202238044,-445.26521828,0.00020639,2]
[345374700,1734202238053,-906.83535436,0.00020639,2]
[345374701,1734202238162,-356.16464564,0.00020639,2]
[345374702,1734202238172,-1895.0,0.00020639,2]
[345374703,1734202238182,-338.159,0.00020639,2]
[345374704,1734202238192,-1254.0,0.00020639,2]
[345374705,1734202238201,-817.0,0.00020639,2]
[345374706,1734202238210,-2100.37129595,0.00020639,2]
[345374707,1734202238223,-1241.83745801,0.00020639,2]
[345374708,1734202238234,-422.79124604,0.00020639,2]
[345374709,1734202238249,-453.833,0.00020639,2]
[345374710,1734202238258,-150.0,0.00020639,2]
[345374711,1734202238268,-420.0,0.00020885,2]
[345374712,1734202238278,-500.0,0.000209,7]
[345374713,1734202238287,-150.99,0.00020951,2]
[345374714,1734202238297,-5544.59750205,0.00020951,2]
[345374715,1734202238526,-576.32211599,0.00020951,2]
[345374716,1734202238538,-3879.07038196,0.00020951,2]
[345374717,1734202238551,-920.92961804,0.00020995,2]
[345374718,1734202238567,-6636.26300649,0.00020995,2]
[345374719,1734202238577,-7785.81240013,0.00020995,2]
[345374720,1734202238587,-1754.13977501,0.00020995,2]
[345374731,1734202238690,-432.45962499,0.00020995,2]
[345374733,1734202238699,-1000.0,0.00021,7]
[345374735,1734202238708,-300.0,0.00021044,2]
[345374737,1734202238717,-500.0,0.00021095,3]
[345374739,1734202238727,-500.0,0.00021095,3]
[345374741,1734202238736,-500.0,0.00021095,3]
[345374743,1734202238749,-449.63166101,0.00021095,3]
[345374747,1734202238760,-163.32833899,0.00021095,3]
[345374749,1734202238769,-500.78031632,0.00021095,3]
[345374751,1734202238778,-151.31244064,0.00021095,3]
[345374754,1734202238797,-348.68755936,0.00021095,3]
[345374756,1734202238806,-166.17190786,0.00021095,3]
[345374758,1734202238816,-500.0,0.00021095,3]
[345374760,1734202238828,-500.0,0.00021095,3]
[345374762,1734202238838,-150.28068583,0.00021095,3]
[345374904,1734202240224,-349.71931417,0.00021095,3]
[345374906,1734202240234,-141.56887473,0.00021095,3]
[345374908,1734202240251,-358.43112527,0.00021095,3]
[345374910,1734202240260,-500.0,0.00021095,3]
[345374912,1734202240269,-66.69452823,0.00021095,3]
[345374915,1734202240281,-433.30547177,0.00021095,3]
[345374917,1734202240290,-500.0,0.00021095,3]
[345374919,1734202240300,-500.0,0.00021095,3]
[345374921,1734202240309,-500.0,0.00021095,3]
[345374922,1734202240318,-500.0,0.00021095,3]
[345374923,1734202240328,-500.0,0.00021095,3]
[345374924,1734202240337,-500.0,0.00021095,3]
[345374925,1734202240347,-500.0,0.00021095,3]
[345374926,1734202240356,-500.0,0.00021095,3]
[345374927,1734202240366,-500.0,0.00021095,3]
[345374929,1734202240375,-500.0,0.00021095,3]
[345374931,1734202240385,-510.09183984,0.00021095,3]
[345374933,1734202240394,-500.0,0.00021095,3]
[345374935,1734202240404,-500.0,0.00021095,3]
[345374937,1734202240414,-500.0,0.00021095,3]
[345374939,1734202240427,-503.03795039,0.00021095,3]
[345374941,1734202240441,-500.0,0.00021095,3]
[345374943,1734202240451,-500.0,0.00021095,3]
[345374945,1734202240460,-554.30483031,0.00021095,3]
[345374947,1734202240471,-500.0,0.00021095,3]
[345374949,1734202240481,-500.0,0.00021095,3]
[345374951,1734202240493,-500.0,0.00021095,3]
[345374953,1734202240502,-500.0,0.00021095,3]
[345374955,1734202240511,-500.0,0.00021095,3]
[345374957,1734202240520,-500.0,0.00021095,3]
[345374959,1734202240530,-500.0,0.00021095,3]
[345374961,1734202240539,-500.0,0.00021095,3]
[345374963,1734202240551,-500.0,0.00021095,3]
[345374964,1734202240561,-500.0,0.00021095,3]
[345374966,1734202240570,-500.0,0.00021095,3]
[345374968,1734202240579,-500.0,0.00021095,3]
[345374969,1734202240588,-500.0,0.00021095,3]
[345374971,1734202240600,-500.0,0.00021095,3]
[345374973,1734202240610,-500.0,0.00021095,3]
[345374975,1734202240619,-500.0,0.00021095,3]
[345374977,1734202240631,-500.0,0.00021095,3]
[345374979,1734202240641,-500.0,0.00021095,3]
[345374981,1734202240651,-429.58877876,0.00021095,3]
[345374983,1734202240663,-137.01354774,0.00021095,3]
[345374985,1734202240673,-500.0,0.00021095,3]
[345374987,1734202240682,-500.0,0.00021095,3]
[345374989,1734202240691,-500.0,0.00021095,3]
[345374991,1734202240702,-502.00337122,0.00021095,3]
[345374993,1734202240711,-500.0,0.00021095,3]
[345374995,1734202240721,-500.0,0.00021095,3]
[345374997,1734202240730,-1000.0,0.00021095,2]
[345374999,1734202240742,-500.0,0.00021095,3]
[345375001,1734202240751,-522.20567616,0.00021095,3]
[345375003,1734202240760,-500.0,0.00021095,3]
[345375005,1734202240769,-500.0,0.00021095,3]
[345375007,1734202240779,-500.0,0.00021095,3]
[345375008,1734202240788,-500.0,0.00021095,3]
[345375010,1734202240798,-500.0,0.00021095,3]
[345375012,1734202240807,-500.0,0.00021095,3]
[345375014,1734202240816,-500.0,0.00021095,3]
[345375016,1734202240826,-500.0,0.00021095,3]
[345375018,1734202240835,-500.0,0.00021095,3]
[345375020,1734202240844,-500.0,0.00021095,3]
[345375022,1734202240854,-500.0,0.00021095,3]
[345375024,1734202240863,-500.0,0.00021095,3]
[345375026,1734202240872,-500.0,0.00021095,3]
[345375028,1734202240882,-500.0,0.00021095,3]
[345375030,1734202240891,-500.0,0.00021095,3]
[345375032,1734202240900,-586.0,0.00021095,3]
[345375034,1734202240909,-500.0,0.00021095,3]
[345375036,1734202240919,-500.0,0.00021095,3]
[345375038,1734202240928,-500.0,0.00021095,3]
[345375040,1734202240938,-500.0,0.00021095,3]
[345375042,1734202240947,-169.0,0.00021095,3]
[345375043,1734202240956,-500.0,0.00021095,3]
[345375045,1734202240966,-368.19919791,0.00021095,3]
[345375047,1734202240975,-500.0,0.00021095,3]
[345375049,1734202240984,-360.30607495,0.00021095,3]
[345375051,1734202240999,-500.0,0.00021095,3]
[345375053,1734202241009,-575.72,0.00021095,3]
[345375055,1734202241018,-500.0,0.00021095,3]
[345375057,1734202241027,-500.0,0.00021095,3]
[345375059,1734202241036,-500.0,0.00021095,3]
[345375061,1734202241045,-500.0,0.00021095,3]
[345375063,1734202241054,-500.0,0.00021095,3]
[345375065,1734202241064,-500.0,0.00021095,3]
[345375067,1734202241073,-500.0,0.00021095,3]
[345375069,1734202241083,-500.0,0.00021095,3]
[345375071,1734202241092,-500.0,0.00021095,3]
[345375073,1734202241101,-307.99,0.00021095,3]
[345375075,1734202241111,-500.0,0.00021095,3]
[345375077,1734202241120,-500.0,0.00021095,3]
[345375079,1734202241129,-500.0,0.00021095,3]
[345375081,1734202241138,-386.7121847,0.00021095,3]
[345375083,1734202241151,-113.2878153,0.00021095,3]
[345375085,1734202241160,-338.2221719,0.00021095,3]
[345375088,1734202241175,-161.7778281,0.00021095,3]
[345375090,1734202241184,-263.62217178,0.00021095,3]
[345375092,1734202241195,-274.66782822,0.00021095,3]
[345375094,1734202241205,-500.0,0.00021095,3]
[345375096,1734202241214,-500.0,0.00021095,3]
[345375098,1734202241223,-500.0,0.00021095,3]
[345375100,1734202241232,-500.0,0.00021095,3]
[345375102,1734202241247,-500.0,0.00021095,3]
[345375104,1734202241256,-246.80787563,0.00021095,3]
[345375106,1734202241266,-500.0,0.00021095,3]
[345375108,1734202241275,-500.0,0.00021095,3]
[345375110,1734202241284,-500.0,0.00021095,3]
[345375112,1734202241294,-500.0,0.00021095,3]
[345375114,1734202241303,-500.0,0.00021095,3]
[345375116,1734202241312,-500.0,0.00021095,3]
[345375118,1734202241321,-500.0,0.00021095,3]
[345375120,1734202241331,-500.0,0.00021095,3]
[345375122,1734202241340,-500.0,0.00021095,3]
[345375124,1734202241350,-500.0,0.00021095,3]
[345375126,1734202241359,-500.0,0.00021095,3]
[345375128,1734202241368,-500.0,0.00021095,3]
[345375130,1734202241377,-500.0,0.00021095,3]
[345375132,1734202241386,-500.0,0.00021095,3]
[345375133,1734202241395,-500.0,0.00021095,3]
[345375134,1734202241403,-500.0,0.00021095,3]
[345375135,1734202241412,-500.0,0.00021095,3]
[345375136,1734202241421,-500.0,0.00021095,3]
[345375137,1734202241430,-500.0,0.00021095,3]
[345375138,1734202241438,-500.0,0.00021095,3]
[345375139,1734202241447,-500.0,0.00021095,3]
[345375140,1734202241456,-500.0,0.00021095,3]
[345375142,1734202241465,-500.0,0.00021095,3]
[345375144,1734202241475,-500.0,0.00021095,3]
[345375146,1734202241484,-484.01,0.00021095,3]
[345375148,1734202241499,-256.12,0.00021095,3]
[345375150,1734202241509,-500.0,0.00021095,3]
[345375152,1734202241523,-500.0,0.00021095,3]
[345375154,1734202241536,-554.46,0.00021095,3]
[345375156,1734202241545,-500.0,0.00021095,3]
[345375158,1734202241558,-568.89595374,0.00021095,3]
[345375160,1734202241567,-500.0,0.00021095,3]
[345375162,1734202241577,-500.0,0.00021095,3]
[345375164,1734202241586,-500.0,0.00021095,3]
[345375166,1734202241595,-500.0,0.00021095,3]
[345375168,1734202241604,-500.0,0.00021095,3]
[345375170,1734202241613,-369.66001829,0.00021095,3]
[345375172,1734202241623,-500.0,0.00021095,3]
[345375174,1734202241632,-500.0,0.00021095,3]
[345375176,1734202241641,-500.0,0.00021095,3]
[345375178,1734202241650,-500.0,0.00021095,3]
[345375180,1734202241659,-500.0,0.00021095,3]
[345375182,1734202241668,-500.0,0.00021095,3]
[345375184,1734202241677,-500.0,0.00021095,3]
[345375186,1734202241686,-500.0,0.00021095,3]
[345375188,1734202241695,-500.0,0.00021095,3]
[345375190,1734202241704,-500.0,0.00021095,3]
[345375192,1734202241713,-500.0,0.00021095,3]
[345375194,1734202241722,-500.0,0.00021095,3]
[345375196,1734202241732,-247.51,0.00021095,3]
[345375198,1734202241744,-500.67371319,0.00021095,3]
[345375200,1734202241754,-413.14504626,0.00021095,3]
[345375202,1734202241763,-509.66,0.00021095,3]
[345375204,1734202241772,-500.0,0.00021095,3]
[345375206,1734202241781,-511.11,0.00021095,3]
[345375208,1734202241790,-304.06304051,0.00021095,3]
[345375210,1734202241800,-500.0,0.00021095,3]
[345375212,1734202241809,-393.49484309,0.00021095,3]
[345375214,1734202241819,-500.0,0.00021095,3]
[345375216,1734202241828,-500.0,0.00021095,3]
[345375218,1734202241837,-500.0,0.00021095,3]
[345375220,1734202241847,-588.12,0.00021095,3]
[345375222,1734202241856,-500.0,0.00021095,3]
[345375224,1734202241865,-500.0,0.00021095,3]
[345375226,1734202241874,-500.0,0.00021095,3]
[345375228,1734202241883,-500.0,0.00021095,3]
[345375230,1734202241892,-500.0,0.00021095,3]
[345375232,1734202241901,-500.0,0.00021095,3]
[345375234,1734202241911,-500.0,0.00021095,3]
[345375236,1734202241920,-475.5,0.00021095,3]
[345375238,1734202241930,-500.0,0.00021095,3]
[345375240,1734202241939,-500.0,0.00021095,3]
[345375242,1734202241950,-500.0,0.00021095,3]
[345375244,1734202241960,-500.0,0.00021095,3]
[345375246,1734202241970,-500.0,0.00021095,3]
[345375248,1734202241979,-528.02,0.00021095,3]
[345375251,1734202241992,-500.0,0.00021095,3]
[345375252,1734202242001,-500.0,0.00021095,3]
[345375254,1734202242010,-523.56,0.00021095,3]
[345375257,1734202242019,-500.0,0.00021095,3]
[345375259,1734202242029,-500.0,0.00021095,3]
[345375261,1734202242038,-353.8,0.00021095,3]
[345375262,1734202242047,-500.0,0.00021095,3]
[345375264,1734202242057,-500.0,0.00021095,3]
[345375266,1734202242066,-500.0,0.00021095,3]
[345375269,1734202242078,-500.0,0.00021095,3]
[345375271,1734202242087,-500.0,0.00021095,3]
[345375273,1734202242097,-500.0,0.00021095,3]
[345375275,1734202242106,-500.0,0.00021095,3]
[345375277,1734202242115,-500.0,0.00021095,3]
[345375279,1734202242124,-500.0,0.00021095,3]
[345375281,1734202242133,-500.0,0.00021095,3]
[345375282,1734202242144,-500.0,0.00021095,3]
[345375285,1734202242153,-229.70694682,0.00021095,3]
[345375287,1734202242163,-500.0,0.00021095,3]
[345375289,1734202242172,-379.55779437,0.00021095,3]
[345375291,1734202242181,-500.0,0.00021095,3]
[345375292,1734202242191,-440.73154149,0.00021095,3]
[345375295,1734202242200,-500.0,0.00021095,3]
[345375296,1734202242234,-500.0,0.00021095,3]
[345375298,1734202242252,-500.0,0.00021095,3]
[345375300,1734202242261,-345.41772059,0.00021095,3]
[345375302,1734202242270,-500.0,0.00021095,3]
[345375304,1734202242279,-500.0,0.00021095,3]
[345375306,1734202242288,-500.0,0.00021095,3]
[345375308,1734202242297,-500.0,0.00021095,3]
[345375310,1734202242306,-500.0,0.00021095,3]
[345375312,1734202242315,-245.799999,0.00021095,3]
[345375314,1734202242324,-500.0,0.00021095,3]
[345375316,1734202242334,-500.0,0.00021095,3]
[345375318,1734202242343,-500.0,0.00021095,3]
[345375320,1734202242352,-500.0,0.00021095,3]
[345375322,1734202242361,-500.0,0.00021095,3]
[345375324,1734202242370,-500.0,0.00021095,3]
[345375326,1734202242379,-500.0,0.00021095,3]
[345375327,1734202242388,-176.59,0.00021095,3]
[345375328,1734202242397,-500.0,0.00021095,3]
[345375329,1734202242406,-500.0,0.00021095,3]
[345375330,1734202242414,-500.0,0.00021095,3]
[345375331,1734202242423,-398.87769102,0.00021095,3]
[345375332,1734202242432,-500.0,0.00021095,3]